Cogmind - Beta 15 @@@ ROGUE MODE // 2025.05.18 @ 12:45:18 Player: Demo Result: Destroyed by G-47 Trooper with Particle Gun Performance ------------- Evolutions (2) 1000 Regions Visited (3) 600 Robots Destroyed (17) 85 Value Destroyed (391) 391 Prototype IDs (2) 40 Alien Tech Used (0) 0 Bonus (0) 0 TOTAL SCORE: 2116 Bonus ------- None Cogmind --------- Core Integrity 0/550 Matter 154/300 Energy 19/100 System Corruption 1% Temperature Warm (114) Movement Core (50) Location -8/Materials Parts ------- > --- POWER (1) -------- (None) > --- PROPULSION (6) --- (None) > --- UTILITY (2) ------ (None) > --- WEAPON (2) ------- (None) > --- INVENTORY (5) ---- Advanced Weight Redist. System Improved Signal Interpreter Peak State ------------ > --- POWER ------------ Backup Power I > --- PROPULSION ------- Backup Propulsion I Backup Propulsion I Flight Unit > --- UTILITY ---------- Advanced Visual Processing Unit Weapon Cycler > --- WEAPON ----------- Lightning Gun Lightning Gun > --- INVENTORY -------- Weapon Cycler Weapon Cycler Lightning Gun [Rating: 20] Favorites ----------- Power Backup Power I Engine Backup Power I Propulsion Light Treads Treads Light Treads Wheel Wheel Hover Unit Backup Propulsion I Flight Unit Flight Unit Utility Makeshift Light Armor Plating Device Weapon Cycler Processor Advanced Visual Processing Unit Protection Makeshift Light Armor Plating Weapon Flamer Energy Gun Lightning Gun Ballistic Gun Improved Assault Rifle Launcher Grenade Launcher Special Weapon Flamer Build | -11 -10 -10 -8 ------- Run | Yrd Mat Sub Mat Slots Evolved 4 | . . . 4 Power . | . . . . Propulsion 4 | . . . 4 Utility . | . . . . Weapon . | . . . . Parts Attached 20 | 2 1 3 14 Power . | . . . . Engine . | . . . . Core . | . . . . Reactor . | . . . . Propulsion 6 | 2 . . 4 Treads 4 | 2 . . 2 Leg . | . . . . Wheel 1 | . . . 1 Hover . | . . . . Flight 1 | . . . 1 Utility 7 | . . 2 5 Device 5 | . . 1 4 Storage . | . . . . Processor 1 | . . . 1 Hackware . | . . . . Protection 1 | . . 1 . Artifact . | . . . . Weapon 7 | . 1 1 5 Energy Gun 4 | . . . 4 Energy Cannon . | . . . . Ballistic Gun 1 | . . . 1 Ballistic Cannon . | . . . . Launcher 1 | . 1 . . Special Weapon 1 | . . 1 . Impact Weapon . | . . . . Slashing Weapon . | . . . . Piercing Weapon . | . . . . Special Melee Weapon . | . . . . Unidentified Prototypes 2 | . . . 2 Parts Lost 14 | . . 4 10 Power . | . . . . Propulsion 8 | . . 2 6 Utility 1 | . . . 1 Weapon 5 | . . 2 3 Highest Loss Streak 3 | . . 2 3 To Critical Strikes 1 | . . . 1 Average Backups 1 | . . . 4 Power . | . . . . Propulsion . | . . . . Utility . | . . . 2 Weapon 1 | . . . 2 Tool/Special . | . . . . Unused Backups 3 | . . . 3 Power . | . . . . Propulsion . | . . . . Utility 1 | . . . 1 Weapon 2 | . . . 2 Tool/Special . | . . . . Average Slot Usage (%) 39 | . 28 40 41 Engine 1 | . . . 3 Treads 18 | . 28 24 3 Hover 1 | . . . 4 Device 3 | . . . 9 Processor 2 | . . . 7 Protection 3 | . . 7 . Energy Gun 2 | . . . 7 Launcher 1 | . . 3 . Special Weapon 2 | . . 5 . Peak Build Rating 20 | 2 3 6 20 Average Rating 6 | 1 2 4 13 On Entrance 1 | . 2 2 2 Naked Turns 5 | . . 1 4 Heaviest Build 10 | . 3 7 10 Greatest Support 12 | 3 3 3 12 Greatest Overweight (x) 2 | . . 2 1 Average Overweight (x) . | . . . . Largest Inventory Capacity 5 | 5 5 5 5 Average Capacity 5 | 5 5 5 5 Most Carried 5 | . 1 2 5 Average Carried 2 | . . . 4 Final Capacity 5 | 5 5 5 5 Final Carried 2 | . 1 . 2 Class Distribution -------------------- 100% | Mutant Dominant Class ---------------- Mutant | -10/Materials Mutant | -10/Subcaves Mutant | -8/Materials Resources | -11 -10 -10 -8 ----------- Run | Yrd Mat Sub Mat Matter Collected 392 | 220 23 52 97 Remotely . | . . . . Salvage Created 413 | . 29 36 348 Parts 27 | . 5 . 22 Haulers Intercepted . | . . . . Recyclers Shooed . | . . . . Parts Field Recycled . | . . . . Retrieved Matter . | . . . . Parts Self-Destructed 21 | . . 21 . Prevented . | . . . . Kills | -11 -10 -10 -8 ------- Run | Yrd Mat Sub Mat Combat Hostiles Destroyed 16 | . 4 1 11 Guns 11 | . . . 11 AOE 5 | . 4 1 . Classes Destroyed 5 | . 1 1 3 Builder 1 | . . . 1 Swarmer 10 | . 4 . 6 Grunt 4 | . . . 4 Hunter 1 | . . . 1 Subdweller 1 | . . 1 . Best Kill Streak 9 | . 4 1 9 Combat Bots Only 8 | . 4 1 8 Max Kills in Single Turn 2 | . 2 1 2 Gunslinging 1 | . . . 1 Exploded 2 | . 2 1 . Melee . | . . . . Uniques/NPCs Destroyed . | . . . . Combat | -11 -10 -10 -8 -------- Run | Yrd Mat Sub Mat Hostile Shots Fired 230 | . 16 34 180 Missed 65 | . 4 8 53 Hits 165 | . 12 26 127 Projectile 165 | . 12 26 127 Critical Strikes 7 | . . 1 6 Damage Taken 2245 | . 143 609 1493 Core 752 | . 26 161 565 Absorbed by Shields . | . . . . Core Remaining (%) 62 | 100 . 25 . Volleys Fired 37 | . 2 4 31 Largest 2 | . 1 1 2 Hottest 79 | . 30 30 79 Shots Fired 68 | . 2 4 62 Gun 62 | . . . 62 Cannon . | . . . . Launcher 6 | . 2 4 . Special . | . . . . Kinetic 27 | . . . 27 Thermal 35 | . . . 35 Explosive 6 | . 2 4 . Electromagnetic . | . . . . Robot Hit Streak 9 | . . . 9 Robot Miss Streak 2 | . . . 2 Penetration Max . | . . . . Secondary Targets 4 | . . . 4 Max Gunslinging Chain 1 | . . . 1 Shots Hit Robots 42 | . . . 42 Core Hits 25 | . 3 2 20 Critical Kills . | . . . . Critical Parts Destroyed . | . . . . Critical Strikes 2 | . . . 2 Burn 2 | . . . 2 Melee Attacks . | . . . . Impact . | . . . . Slashing . | . . . . Piercing . | . . . . Sneak Attacks . | . . . . Combat Hostiles . | . . . . Follow-up Attacks . | . . . . Damage Inflicted 991 | . 215 146 630 Guns 629 | . . . 629 Cannons . | . . . . Explosions 351 | . 205 146 . Melee . | . . . . Ramming 11 | . 10 . 1 Kinetic 273 | . . . 273 Thermal 356 | . . . 356 Explosive 351 | . 205 146 . Electromagnetic . | . . . . Impact . | . . . . Slashing . | . . . . Piercing . | . . . . Highest Corruption 1 | . . . 1 Average Corruption 1 | . . . 1 Corruption Purged . | . . . . Corruption Blocked . | . . . . Effects 1 | . . . 1 Energy Discharges 1 | . . . 1 Overload Shots . | . . . . Overflow Damage 36 | . 36 . . Projectiles . | . . . . Explosions 36 | . 36 . . Melee . | . . . . Knockbacks . | . . . . Impact . | . . . . Kinetic . | . . . . Secondary . | . . . . Self-Inflicted Damage 62 | . 62 . . Shots 2 | . 2 . . Rammed 4 | . 3 . 1 Targets Rammed 4 | . 3 . 1 Kicked . | . . . . Crushed . | . . . . Highest Temperature 233 | . . 229 233 Average Temperature 91 | . . 132 88 Received Heat Transfer 821 | . . 362 459 Siege Activations . | . . . . Martial Activations . | . . . . Shielding Activations . | . . . . Robots Disrupted . | . . . . Combat Hostiles . | . . . . Robots Corrupted . | . . . . Combat Hostiles . | . . . . Parts Fried . | . . . . Impact Corruptions . | . . . . Robots Melted . | . . . . Combat Hostiles . | . . . . Parts Melted 2 | . . . 2 Heat Transferred 999 | . . . 999 Parts Sabotaged . | . . . . Parts Stolen . | . . . . Parts Stripped . | . . . . Power Chain Reactions . | . . . . Alert | -11 -10 -10 -8 ------- Run | Yrd Mat Sub Mat Maximum Alert Level 1 | . . . 1 Low Security (%) 90 | 100 100 . 85 Level 1 9 | . . . 14 Level 2 . | . . . . Level 3 . | . . . . Level 4 . | . . . . Level 5 . | . . . . High Security . | . . . . Max Security . | . . . . Peak Influence 312 | . 130 . 312 Initial . | . . . . Average 75 | . 81 . 75 Influence Increases 702 | . 140 . 562 Destroy 0b10 Robot/C 300 | . 80 . 220 Destroy 0b10 Robot/NC 5 | . . . 5 Destroy Leader 70 | . 20 . 50 Successful Hack 17 | . . . 17 Destroy Structure 10 | . 10 . . Lose Combat Pursuer 300 | . 30 . 270 Influence Decreases 410 | . 90 50 270 Entered New Map 25 | . . 25 . Time Decay 285 | . 90 25 170 Lost Part 100 | . . . 100 Squads Dispatched 4 | . 1 . 3 Investigation 2 | . . . 2 Extermination . | . . . . Reinforcement 2 | . 1 . 1 Assault . | . . . . Garrison . | . . . . Intercept . | . . . . Searches Triggered . | . . . . Construction Impeded . | . . . . Haulers Reinforced . | . . . . Active Scanning Responses . | . . . . Cargo Convoy Interrupts . | . . . . Stealth | -11 -10 -10 -8 --------- Run | Yrd Mat Sub Mat Distress Signals 5 | . 1 . 4 Communications Jammed . | . . . . Distress Signals . | . . . . Times Spotted 53 | . 6 12 35 Peak Tracking Total 12 | . 8 4 12 Tactical Retreats 11 | . 1 4 6 Traps | -11 -10 -10 -8 ------- Run | Yrd Mat Sub Mat Traps Triggered 1 | . . . 1 Indirectly . | . . . . Trap Hack Attempts . | . . . . Triggered . | . . . . Disarmed . | . . . . Reprogrammed . | . . . . Reused 1 | . . 1 . Traps Extracted . | . . . . Installed 1 | . . 1 . Triggered . | . . . . Most Traps Carried 1 | . . 1 . Machines | -11 -10 -10 -8 ---------- Run | Yrd Mat Sub Mat Machines Disabled . | . . . . Max in Single Turn . | . . . . Machines Repaired . | . . . . Machines Dismantled . | . . . . Machines Sabotaged . | . . . . Overloaded Fab Kills . | . . . . Hacking | -11 -10 -10 -8 --------- Run | Yrd Mat Sub Mat Machines Accessed 7 | . . 1 6 Terminals 5 | . . . 5 Fabricators . | . . . . Repair Stations 1 | . . . 1 Recycling Units . | . . . . Scanalyzers . | . . . . Garrison Access . | . . . . Total Hacks 22 | . . 5 17 Successful 9 | . . 5 4 Failed 13 | . . . 13 Catastrophic 5 | . . . 5 Database Lockouts . | . . . . Manual 11 | . . . 11 Terminals 15 | . . . 15 Fabricators . | . . . . Repair Stations 2 | . . . 2 Recycling Units . | . . . . Scanalyzers . | . . . . Garrison Access . | . . . . Terminal Hacks 7 | . . 5 2 Record 5 | . . 5 . Locate Traps 2 | . . . 2 Fabricator Hacks . | . . . . Repair Station Hacks 1 | . . . 1 Refit 1 | . . . 1 Recycling Unit Hacks . | . . . . Scanalyzer . | . . . . Garrison Access Hacks . | . . . . Unauthorized Hacks 1 | . . . 1 Terminals 1 | . . . 1 Disrupt 1 | . . . 1 Fabricators . | . . . . Repair Stations . | . . . . Recycling Units . | . . . . Scanalyzers . | . . . . Garrison Access . | . . . . Data Cores Recovered . | . . . . Used . | . . . . Hacking Detections 5 | . . . 5 Full Trace Events 2 | . . . 2 Feedback Events 1 | . . . 1 Corruption 1 | . . . 1 Feedback Blocked . | . . . . Robot Schematics Acquired . | . . . . Robots Built . | . . . . Authchips . | . . . . Time . | . . . . Total Robot Build Rating . | . . . . Part Schematics Acquired . | . . . . Parts Built . | . . . . Authchips . | . . . . Time . | . . . . Total Part Build Rating . | . . . . Parts Repaired . | . . . . Time . | . . . . Parts Recycled . | . . . . Recycled Matter . | . . . . Retrieved Matter . | . . . . Retrieved Components . | . . . . Parts Scanalyzed . | . . . . Part Schematics Acquired . | . . . . Parts Damaged . | . . . . Bothacking | -11 -10 -10 -8 ------------ Run | Yrd Mat Sub Mat Used RIF Installer . | . . . . Robots Hacked . | . . . . Non-combat . | . . . . Combat . | . . . . Robot Hacks Applied . | . . . . Relay Couplers Released . | . . . . Fabnet Peak Effective % . | . . . . Robots Rewired . | . . . . Allies Hacked . | . . . . Hacks Repelled . | . . . . Allies | -11 -10 -10 -8 -------- Run | Yrd Mat Sub Mat Total Allies . | . . . . Largest Group . | . . . . Highest-Rated Group . | . . . . Highest-Rated Ally . | . . . . Total Orders . | . . . . Ally Attacks . | . . . . Total Damage . | . . . . Kills . | . . . . Allies Corrupted . | . . . . Allies Melted . | . . . . Intel | -11 -10 -10 -8 ------- Run | Yrd Mat Sub Mat Active Infowar (turns) 402 | . . 31 371 Optics 402 | . . 31 371 Robot Analysis Total . | . . . . Derelict Logs Recovered 1 | . . 1 . Drone Launches . | . . . . Drone Recoveries . | . . . . Exploration | -11 -10 -10 -8 ------------- Run | Yrd Mat Sub Mat Turns Passed 1320 | 16 198 708 398 Spaces Moved 1381 | 25 76 838 442 Core 1212 | 25 76 838 273 Treads . | . . . . Legs . | . . . . Wheels . | . . . . Hover 169 | . . . 169 Flight . | . . . . Fastest Speed 50 | 50 50 50 50 Average Speed 71 | 50 50 78 62 Slowest Speed 160 | 50 50 150 160 Overloaded Moves . | . . . . Propulsion Burnouts . | . . . . Robots Hopped . | . . . . Potential Cave-ins . | . . . . Cave-ins Triggered . | . . . . Exploration Rate (%) 25 | 3 21 31 48 Regions Visited 3 Branch Regions 1 Pre-discovered Areas 1 | . . 1 . Known Exits Taken . | . . . . Unknown Exits Taken 3 | 1 1 1 . Scrap Searched . | . . . . Spaces Dug 4 | . 4 . . Terrain Destroyed 24 | . 9 15 . Melee . | . . . . Projectile . | . . . . AOE 24 | . 9 15 . Terrain Rammed . | . . . . Walls Destroyed . | . . . . Machines Disabled . | . . . . Actions | -11 -10 -10 -8 --------- Run | Yrd Mat Sub Mat Total 1654 | 26 233 882 513 Wait 185 | . 151 28 6 Move 1378 | 24 75 837 442 Hop . | . . . . Pick Up 10 | . . 2 8 Fast Attach 15 | 2 1 2 10 Attach 8 | . . 4 4 Detach 4 | . 1 2 1 Swap 3 | . . . 3 Drop 9 | . . 2 7 Fire 37 | . 2 4 31 Melee . | . . . . Ram 3 | . 3 . . Kick . | . . . . Crush 1 | . . . 1 Escape Stasis . | . . . . Rewire . | . . . . Trap 1 | . . 1 . Miscellaneous . | . . . . Route ------- -11/Scrapyard -10/Materials -10/Subcaves -8/Materials (discovered 1 exit: Fac) History --------- Turn | Location | Event 8 | -11/Scrapyard | Discovered new exit (range 16) 17 | -11/Scrapyard | Entered Materials 207 | -10/Materials | Discovered new exit (range 6) 215 | -10/Materials | Entered Subcaves 236 | -10/Subcaves | Learned 4 Materials zone layouts 245 | -10/Subcaves | Shifting Twisted Machinery released Flamer 247 | -10/Subcaves | Shifting Twisted Machinery released Sub. Optics 318 | -10/Subcaves | Build established: Mutant 332 | -10/Subcaves | Visited Clippyterm 335 | -10/Subcaves | Learned Research machine intel 335 | -10/Subcaves | Learned Factory garrison access intel 354 | -10/Subcaves | Discovered new exit (range 4) 357 | -10/Subcaves | Ambushed by Subdwellers from Twisted Machinery 454 | -10/Subcaves | Shifting Twisted Machinery released Mak. Light Armor Plating 466 | -10/Subcaves | Learned location of Zion (-7) 466 | -10/Subcaves | Met a Zionite searching for "candidates" 737 | -10/Subcaves | Shifting Twisted Machinery released Shrapnel Trap 872 | -10/Subcaves | Core integrity fell below 50% 923 | -10/Subcaves | Entered Materials 923 | -8/Materials | Evolved 4 slots: Propulsion x4 924 | -8/Materials | Identified exit to Factory 1180 | -8/Materials | Core integrity fell below 50% 1199 | -8/Materials | Lost 3 parts (2n1u) 1294 | -8/Materials | Lost 3 parts (2n1w) 1302 | -8/Materials | Core integrity fell below 20% 1317 | -8/Materials | Released all parts (4) 1321 | -8/Materials | Destroyed by G-47 Trooper with Particle Gun Last Messages --------------- 01266_ Slug penetrates Wall. 01269_ Targeting Computer melted. 01269_ H-55 Commando destroyed. 01282_ Critical hit (Burn: +37). 01284_ G-50 Soldier destroyed. 01292_ G-47 Trooper destroyed. 01293_ U-05 Engineer builds a Door. 01299_ Imp. Treads destroyed. 01301_ Critical hit (Burn: +37). 01307_ Discarded Adv. Visual Processing Unit. 01309_ G-47 Trooper destroyed. 01313_ Switching to secondary target: G-47 Trooper. 01315_ Critical hit (Burn: +37). 01315_ Imp. Medium Laser destroyed. 01315_ Imp. Assault Rifle destroyed. 01317_ Released Weapon Cycler. 01317_ Released Lightning Gun. 01319_ Acquired 53 matter. 01321_ Acquired 18 matter. Map ----- +----------------------------------------------------+ | # ???????????????# #??? | | #? "?????????????# #??? | | ??? ???????????# #??? | | ???########??????????# #??? | | ?????????????????????# #??? | | ?????????????????????# #??? | | ?????????????????????# #??? | | ?????????????????????# #??? | | ?????????????????????# #??? | | ?????????????????????# #??? | | ?????????????????????# #??? | | ?????????????????????# #??? | | #####????????????????# #??? | | ####????????????????# #??? | | # ????????????????# #??? | | # ????????????????# #??? | | # ????????????????# #??? | | # ????????????????# #??? | | # ""????????????????# #??? | | # ""????????????????# #??? | | # ""????????????????# !|#??? | | #####????????????????#%*!=#??? | | #??????????????#######[*!%#??? | | #??????# % ==g#??? | | #??????????????##########Y###? | | #???????????????????????#@g!#? | | #???????????????????????#*[*#? | | #####???????????????????#=[ #? | | ???????????????????#[[=#? | | ???????????????????#[[[#? | | ???????????????????#%![#? | | #####???????????????????#]![#? | | ????????????????????????#####? | | ?????????????????????????????? | | ?????????????????????????????? | | ?????????????????????????????? | | #####????????????????????????? | | ?????????????????????????????? | | ?????????????????????????????? | | ?????????????????????????????? | | ?????????????????????????????? | | ?????????????????????????????? | | ?????????????????????????????? | | ?????????????????????????????? | | ?????????????????????????????? | | ?????????????????????????????? | | ?????????????????????????????? | | ?????????????????????????????? | | ?????????????????????????????? | | ?????????????????????????????? | +----------------------------------------------------+ Best States ------------- Heat Dissipation 31 Energy Generation 9 Energy Capacity 100 Matter Stores 300 Matter Capacity 300 Sight Range 21 Terrain Scan Density 10 Armor Coverage 100 Weapon Cycling 30 Evasion (%) 50 Recoil Reduction 2 Item Schematics ----------------- None Robot Schematics ------------------ None Fabricated ------------ Nothing Repaired ---------- Nothing Alien Tech Used ----------------- None Achievements -------------- None Challenges ------------ None Game ------ Seed NetworkedSuspensionDetonator Manual? 0 Play Time 00:12:44 Cumulative 174.6 hours Start 2025.05.18 @ 12:34:29 End 2025.05.18 @ 12:45:18 Sessions 1 Manual Loads 0 Difficulty Rogue Special Mode None Game No. 201 Rogue 201 Adventurer 0 Explorer 0 Win Type - Total 1 Types 1/0/0/0/0/0/0/0/0/0 Lore% 69 Gallery% 69 Achievement% 61 Wizard Run 0 Options --------- Layout 1 ASCII 0 Keyboard 0 Movement Numpad Keybinds 0 Fullscreen 1 Font 24/Smallcaps Map View 50x35 Zoom Use 0% Tactical HUD 1 Map Filters NONE Filters NONE Steam 1 RUN: a78fc205-631c-4164-a7d9-19e348a97d04